fUSD/lending_fUSD_20240625
["ID","MTS","AMOUNT","RATE_DAILY","PERIOD"]
[330362166,1719334054110,-156.23194071,0.0004259,30]
[330362167,1719334054134,-150.0,0.00042617,30]
[330362168,1719334054158,-156.23194071,0.00042637,30]
[330362169,1719334054182,-154.30109746,0.0004266,30]
[330362170,1719334054209,-156.23194071,0.00042685,30]
[330362171,1719334054234,-150.0,0.00042693,30]
[330362172,1719334054258,-406.41428464,0.00042714,30]
[330362173,1719334054507,-800.0,0.00042726,30]
[330362174,1719334054535,-156.23194071,0.00042732,30]
[330362175,1719334054561,-150.0,0.00042769,30]
[330362176,1719334054588,-150.0,0.00042775,30]
[330362177,1719334054617,-156.23194071,0.00042779,30]
[330362178,1719334054642,-156.23194071,0.00042827,30]
[330362179,1719334054666,-150.0,0.00042844,30]
[330362180,1719334054692,-156.23194071,0.00042874,30]
[330362181,1719334054719,-150.0,0.000429,18]
[330362182,1719334054745,-200.0,0.000429,18]
[330362183,1719334054770,-150.0,0.0004292,30]
[330362184,1719334054795,-156.23194071,0.00042921,30]
[330362185,1719334054820,-166.66666667,0.00042938,30]
[330362186,1719334054845,-155.80098944,0.00042945,30]
[330362187,1719334054872,-156.23194071,0.00042969,30]
[330362188,1719334054898,-150.0,0.00042979,30]
[330362189,1719334054924,-150.0,0.00042995,30]
[330362190,1719334054953,-939219.97311815,0.00043,40]
[330362191,1719334054978,-1047.0488,0.00043,30]
[330362192,1719334055004,-500.0,0.00043,120]
[330362193,1719334055028,-1039.0,0.00043,30]
[330362194,1719334055054,-402.6004247,0.00043,30]
[330362195,1719334055078,-5282.07080205,0.00043,120]
[330362196,1719334055101,-2000.0,0.00043,120]
[330362197,1719334055124,-1188.03012745,0.00043,30]
[330362198,1719334055149,-1000.0,0.00043,120]
[330362199,1719334055173,-109460.045,0.00043,65]
[330362200,1719334055198,-500.0,0.00043,30]
[330362201,1719334055222,-156.23194071,0.00043016,30]
[330362202,1719334055246,-156.23194071,0.00043063,30]
[330362203,1719334055273,-150.0,0.00043071,30]
[330362204,1719334055297,-297.56744919,0.00043098,120]
[330362205,1719334055321,-1618.89586169,0.00043101,60]
[330362206,1719334055344,-156.23194071,0.00043111,30]
[330362207,1719334055368,-1000.0,0.00043131,30]
[330362208,1719334055392,-3820.01,0.00043137,30]
[330362209,1719334055419,-3820.01,0.00043137,30]
[330362210,1719334055444,-150.0,0.00043146,30]
[330362211,1719334055468,-156.23194071,0.00043158,30]
[330362212,1719334055493,-150.0,0.00043183,30]
[330362213,1719334055520,-156.23194071,0.00043205,30]
[330362214,1719334055544,-150.0,0.00043222,30]
[330362215,1719334055568,-155.177234,0.00043233,30]
[330362216,1719334055591,-11794.77345483,0.00043234,60]
[330362217,1719334055616,-156.23194071,0.00043253,30]
[330362218,1719334055642,-800.0,0.00043274,30]
[330362219,1719334055666,-1000.0,0.00043288,30]
[330362220,1719334055691,-150.0,0.00043298,30]
[330362221,1719334055718,-156.23194071,0.000433,30]
[330362222,1719334055743,-156.23194071,0.00043347,30]
[330362223,1719334055770,-1702.05137702,0.00043357,30]
[330362224,1719334055794,-151.0,0.0004337,120]
[330362225,1719334055821,-150.0,0.00043373,30]
[330362226,1719334055850,-150.0,0.00043386,30]
[330362227,1719334055876,-156.23194071,0.00043394,30]
[330362228,1719334055902,-1661.55160136,0.000434,120]
[330362229,1719334055929,-3820.01,0.0004341,30]
[330362230,1719334055957,-3820.01,0.0004341,30]
[330362231,1719334055980,-155.69335686,0.00043441,30]
[330362232,1719334056008,-156.23194071,0.00043442,30]
[330362233,1719334056033,-1000.0,0.00043444,30]
[330362234,1719334056059,-150.0,0.00043449,30]
[330362235,1719334056083,-156.23194071,0.00043489,30]
[330362236,1719334056108,-506000.0,0.000435,80]
[330362237,1719334056136,-150.0,0.00043524,30]
[330362238,1719334056162,-156.23194071,0.00043536,30]
[330362239,1719334056188,-172.18888889,0.00043562,120]
[330362240,1719334056212,-151.62552263,0.0004358,20]
[330362241,1719334056237,-154.75344803,0.00043582,30]
[330362242,1719334056264,-156.23194071,0.00043584,30]
[330362243,1719334056288,-150.0,0.000436,30]
[330362244,1719334056313,-1000.0,0.00043601,30]
[330362245,1719334056338,-156.23194071,0.00043631,30]
[330362246,1719334056363,-500.0,0.00043645,30]
[330362247,1719334056390,-150.0,0.00043675,30]
[330362248,1719334056417,-156.23194071,0.00043678,30]
[330362249,1719334056444,-3820.01,0.00043683,30]
[330362250,1719334056468,-3820.01,0.00043683,30]
[330362251,1719334056491,-1714.64424492,0.000437,120]
[330362252,1719334056517,-156.23194071,0.00043726,30]
[330362253,1719334056540,-150.0,0.00043726,30]
[330362254,1719334056564,-150.0,0.00043751,30]
[330362255,1719334056591,-333.8,0.00043756,120]
[330362256,1719334056615,-1000.0,0.00043757,30]
[330362257,1719334056640,-156.23194071,0.00043773,30]
[330362258,1719334056665,-1000.0,0.00043774,120]
[330362259,1719334056689,-2000.0,0.00043781,30]
[330362260,1719334056713,-464.65296524,0.000438,30]
[330362261,1719334056737,-659.27987001,0.000438,120]
[330362262,1719334056761,-419.03021873,0.000438,120]
[330362263,1719334056786,-1756.43597823,0.000438,111]
[330362264,1719334056809,-250.0,0.00043808,100]
[330362265,1719334056834,-156.23194071,0.0004382,30]
[330362266,1719334056861,-949.3056257,0.00043822,30]
[330362267,1719334056887,-150.0,0.00043826,30]
[330362268,1719334056911,-326.19560579,0.00043835,120]
[330362269,1719334056938,-337.90264459,0.00043835,120]
[330362270,1719334056963,-500.0,0.00043835,120]
[330362271,1719334056988,-1121.16151936,0.00043835,30]
[330362272,1719334057018,-1500.0,0.00043835,120]
[330362273,1719334057046,-500.0,0.00043835,120]
[330362274,1719334057071,-500.0,0.00043835,30]
[330362275,1719334057095,-510.4,0.00043835,120]
[330362276,1719334057119,-510.4,0.00043835,120]
[330362277,1719334057336,-510.4,0.00043835,120]
[330362278,1719334057362,-510.4,0.00043835,120]
[330362279,1719334057387,-510.4,0.00043835,120]
[330362280,1719334057411,-510.4,0.00043835,120]
[330362281,1719334057435,-510.4,0.00043835,120]
[330362282,1719334057459,-510.4,0.00043835,120]
[330362283,1719334057482,-510.4,0.00043835,120]
[330362284,1719334057509,-510.4,0.00043835,120]
[330362285,1719334057536,-510.4,0.00043835,120]
[330362286,1719334057561,-510.4,0.00043835,120]
[330362287,1719334057590,-510.4,0.00043835,120]
[330362288,1719334057617,-510.4,0.00043835,120]
[330362289,1719334057642,-510.4,0.00043835,120]
[330362290,1719334057667,-510.4,0.00043835,120]
[330362291,1719334057695,-510.4,0.00043835,120]
[330362292,1719334057724,-510.4,0.00043835,120]
[330362293,1719334057753,-510.4,0.00043835,120]
[330362294,1719334057778,-510.4,0.00043835,120]
[330362295,1719334057803,-510.4,0.00043835,120]
[330362296,1719334057828,-510.4,0.00043835,120]
[330362297,1719334057857,-510.4,0.00043835,120]
[330362298,1719334057883,-510.50690051,0.00043835,120]
[330362299,1719334057911,-1000.0,0.00043835,120]
[330362300,1719334057938,-1000.0,0.00043835,120]
[330362301,1719334057966,-1000.0,0.00043835,120]
[330362302,1719334057992,-1000.0,0.00043835,120]
[330362303,1719334058023,-8007.05,0.00043835,120]
[330362304,1719334058049,-5101.5,0.00043835,120]
[330362305,1719334058076,-500.0,0.00043835,120]
[330362306,1719334058103,-156.23194071,0.00043868,30]
[330362307,1719334058129,-750.37214691,0.0004388,30]
[330362308,1719334058156,-216.72235666,0.0004388,120]
[330362309,1719334058183,-872.42277153,0.000439,120]
[330362310,1719334058210,-150.0,0.00043902,30]
[330362311,1719334058236,-1000.0,0.00043914,30]
[330362312,1719334058262,-156.23194071,0.00043915,30]
[330362313,1719334058289,-2722.5,0.00043951,99]
[330362314,1719334058316,-3820.01,0.00043956,30]
[330362315,1719334058347,-3820.01,0.00043956,30]
[330362316,1719334058373,-156.23194071,0.00043962,30]
[330362317,1719334058401,-150.0,0.00043978,30]
[330362318,1719334058430,-50000.0,0.00044,34]
[330362319,1719334058457,-46157.42,0.00044,29]
[330362320,1719334058483,-243.44605181,0.00044,60]
[330362321,1719334058510,-764.42913054,0.00044,120]
[330362322,1719334058536,-850.0,0.00044,120]
[330362323,1719334058564,-1000.0,0.00044,120]
[330362324,1719334058589,-500.0,0.00044,30]
[330362325,1719334058615,-730.0,0.00044,120]
[330362326,1719334058642,-500000.0,0.00044,90]
[330362327,1719334058669,-679.462983,0.00044,57]
[330362328,1719334058693,-156.23194071,0.0004401,30]
[330362329,1719334058717,-151.92007357,0.00044045,30]
[330362330,1719334058742,-151.92007357,0.0004405,30]
[330362331,1719334058768,-150.0,0.00044053,30]
[330362332,1719334058793,-156.23194071,0.00044057,30]
[330362333,1719334058818,-1000.0,0.0004407,30]
[330362334,1719334058844,-156.23194071,0.00044104,30]
[330362335,1719334058873,-171.16638942,0.00044106,30]
[330362336,1719334058897,-500.0,0.00044109,120]
[330362337,1719334058924,-8007.05,0.00044109,120]
[330362338,1719334058951,-5101.5,0.00044109,120]
[330362339,1719334058976,-500.0,0.00044109,120]
[330362340,1719334059003,-150.0,0.00044129,30]
[330362341,1719334059030,-156.23194071,0.00044152,30]
[330362342,1719334059056,-156.23194071,0.00044199,30]
[330362343,1719334059082,-1004.48704799,0.000442,120]
[330362344,1719334059107,-1004.48704797,0.000442,120]
[330362345,1719334059132,-1004.48704797,0.000442,120]
[330362346,1719334059159,-1004.48704797,0.000442,120]
[330362347,1719334059187,-1004.48704797,0.000442,120]
[330362348,1719334059213,-150.0,0.00044204,30]
[330362349,1719334059239,-1000.0,0.00044227,30]
[330362350,1719334059266,-3820.01,0.0004423,30]
[330362351,1719334059293,-3820.01,0.0004423,30]
[330362352,1719334059320,-156.23194071,0.00044246,30]
[330362353,1719334059347,-172.18888889,0.00044274,120]
[330362354,1719334059374,-155.69335686,0.00044275,30]
[330362355,1719334059400,-150.0,0.0004428,30]
[330362356,1719334059427,-169.25532985,0.00044287,30]
[330362357,1719334059454,-156.23194071,0.00044294,30]
[330362358,1719334059480,-500.0,0.000443,30]
[330362359,1719334059508,-156.23194071,0.00044341,30]
[330362360,1719334059535,-150.0,0.00044355,30]
[330362361,1719334059561,-169.25532985,0.0004437,30]
[330362362,1719334059588,-194.76,0.0004438,120]
[330362363,1719334059614,-216.95683908,0.0004438,120]
[330362364,1719334059640,-216.95683908,0.0004438,120]
[330362365,1719334059666,-216.95683908,0.0004438,120]
[330362366,1719334059691,-216.95683908,0.0004438,120]
[330362367,1719334059717,-216.95683908,0.0004438,120]
[330362368,1719334059743,-216.95683908,0.0004438,120]
[330362369,1719334059772,-216.95683908,0.0004438,120]
[330362370,1719334059798,-216.95683908,0.0004438,120]
[330362371,1719334059824,-216.95683908,0.0004438,120]
[330362372,1719334059852,-216.95683908,0.0004438,120]
[330362373,1719334059879,-216.95683908,0.0004438,120]
[330362374,1719334059906,-216.95683908,0.0004438,120]
[330362375,1719334059935,-216.95683908,0.0004438,120]
[330362376,1719334059961,-216.95683908,0.0004438,120]
[330362377,1719334059987,-216.95683908,0.0004438,120]
[330362378,1719334060016,-216.95683908,0.0004438,120]
[330362379,1719334060041,-216.95683908,0.0004438,120]
[330362380,1719334060066,-216.95683908,0.0004438,120]
[330362382,1719334060311,-216.95683908,0.0004438,120]
[330362383,1719334060339,-217.45,0.0004438,120]
[330362384,1719334060381,-867.9023563,0.0004438,120]
[330362385,1719334060409,-867.9023563,0.0004438,120]
[330362386,1719334060436,-867.9023563,0.0004438,120]
[330362387,1719334060464,-867.9023563,0.0004438,120]
[330362388,1719334060491,-867.9023563,0.0004438,120]
[330362389,1719334060520,-867.9023563,0.0004438,120]
[330362390,1719334060548,-867.9023563,0.0004438,120]
[330362391,1719334060575,-867.9023563,0.0004438,120]
[330362393,1719334060602,-867.9023563,0.0004438,120]
[330362394,1719334060628,-867.9023563,0.0004438,120]
[330362395,1719334060660,-867.9023563,0.0004438,120]
[330362396,1719334060688,-867.9023563,0.0004438,120]
[330362397,1719334060713,-867.9023563,0.0004438,120]
[330362398,1719334060740,-867.9023563,0.0004438,120]
[330362399,1719334060770,-867.9023563,0.0004438,120]
[330362400,1719334060796,-867.9023563,0.0004438,120]
[330362401,1719334060821,-867.9023563,0.0004438,120]
[330362402,1719334060846,-867.9023563,0.0004438,120]
[330362403,1719334060877,-867.9023563,0.0004438,120]
[330362404,1719334060904,-868.4,0.0004438,120]
[330362405,1719334060935,-182.83669394,0.0004438,120]
[330362406,1719334060962,-182.83669394,0.0004438,120]
[330362407,1719334060986,-182.83669394,0.0004438,120]
[330362408,1719334061015,-182.83669394,0.0004438,120]
[330362409,1719334061039,-182.83669394,0.0004438,120]
[330362410,1719334061063,-182.83669394,0.0004438,120]
[330362411,1719334061087,-182.83669394,0.0004438,120]
[330362412,1719334061113,-182.83669394,0.0004438,120]
[330362413,1719334061139,-182.83669394,0.0004438,120]
[330362414,1719334061163,-182.83669394,0.0004438,120]
[330362415,1719334061190,-182.83669394,0.0004438,120]
[330362416,1719334061216,-182.83669394,0.0004438,120]
[330362417,1719334061249,-182.83669394,0.0004438,120]
[330362418,1719334061278,-182.83669394,0.0004438,120]
[330362419,1719334061306,-182.83669394,0.0004438,120]
[330362420,1719334061332,-182.83669394,0.0004438,120]
[330362421,1719334061359,-182.83669394,0.0004438,120]
[330362422,1719334061386,-182.83669394,0.0004438,120]
[330362423,1719334061412,-182.83669394,0.0004438,120]
[330362424,1719334061439,-183.33,0.0004438,120]
[330362425,1719334061465,-731.42177578,0.0004438,120]
[330362426,1719334061491,-731.42177578,0.0004438,120]
[330362427,1719334061517,-731.42177578,0.0004438,120]
[330362428,1719334061543,-731.42177578,0.0004438,120]
[330362429,1719334061570,-731.42177578,0.0004438,120]
[330362430,1719334061596,-731.42177578,0.0004438,120]
[330362431,1719334061623,-731.42177578,0.0004438,120]
[330362432,1719334061649,-731.42177578,0.0004438,120]
[330362433,1719334061674,-731.42177578,0.0004438,120]
[330362434,1719334061699,-731.42177578,0.0004438,120]
[330362435,1719334061724,-731.42177578,0.0004438,120]
[330362436,1719334061751,-731.42177578,0.0004438,120]
[330362437,1719334061779,-731.42177578,0.0004438,120]
[330362438,1719334061804,-731.42177578,0.0004438,120]
[330362439,1719334061837,-731.42177578,0.0004438,120]
[330362440,1719334061869,-731.42177578,0.0004438,120]
[330362441,1719334061898,-731.42177578,0.0004438,120]
[330362442,1719334061926,-731.42177578,0.0004438,120]
[330362443,1719334061952,-731.42177578,0.0004438,120]
[330362444,1719334061980,-731.92,0.0004438,120]
[330362445,1719334062010,-243.58443605,0.0004438,120]
[330362446,1719334062039,-243.58443605,0.0004438,120]
[330362447,1719334062064,-243.58443605,0.0004438,120]
[330362448,1719334062091,-243.58443605,0.0004438,120]
[330362449,1719334062118,-243.58443605,0.0004438,120]
[330362450,1719334062146,-243.58443605,0.0004438,120]
[330362451,1719334062174,-243.58443605,0.0004438,120]
[330362452,1719334062200,-243.58443605,0.0004438,120]
[330362453,1719334062225,-243.58443605,0.0004438,120]
[330362454,1719334062251,-243.58443605,0.0004438,120]
[330362455,1719334062279,-243.58443605,0.0004438,120]
[330362456,1719334062304,-243.58443605,0.0004438,120]
[330362457,1719334062329,-243.58443605,0.0004438,120]
[330362458,1719334062355,-243.58443605,0.0004438,120]
[330362459,1719334062380,-243.58443605,0.0004438,120]
[330362460,1719334062406,-243.58443605,0.0004438,120]
[330362461,1719334062431,-243.58443605,0.0004438,120]
[330362462,1719334062457,-243.58443605,0.0004438,120]
[330362463,1719334062483,-243.58443605,0.0004438,120]
[330362464,1719334062511,-244.08,0.0004438,120]
[330362465,1719334062536,-974.4127442,0.0004438,120]
[330362466,1719334062562,-974.4127442,0.0004438,120]
[330362467,1719334062588,-974.4127442,0.0004438,120]
[330362468,1719334062613,-974.4127442,0.0004438,120]
[330362469,1719334062639,-974.4127442,0.0004438,120]
[330362470,1719334062663,-974.4127442,0.0004438,120]
[330362471,1719334062689,-974.4127442,0.0004438,120]
[330362472,1719334062714,-974.4127442,0.0004438,120]
[330362473,1719334062739,-974.4127442,0.0004438,120]
[330362474,1719334062764,-974.4127442,0.0004438,120]
[330362475,1719334062789,-974.4127442,0.0004438,120]
[330362476,1719334062813,-974.4127442,0.0004438,120]
[330362477,1719334062838,-974.4127442,0.0004438,120]
[330362478,1719334062866,-974.4127442,0.0004438,120]
[330362479,1719334062891,-974.4127442,0.0004438,120]
[330362480,1719334062915,-974.4127442,0.0004438,120]
[330362481,1719334062943,-974.4127442,0.0004438,120]
[330362482,1719334062968,-974.4127442,0.0004438,120]
[330362483,1719334062993,-974.4127442,0.0004438,120]
[330362484,1719334063025,-974.91,0.0004438,120]
[330362485,1719334063051,-500.0,0.00044383,120]
[330362486,1719334063077,-8007.05,0.00044383,120]
[330362487,1719334063336,-5101.5,0.00044383,120]
[330362488,1719334063363,-599.53273783,0.00044383,120]
[330362489,1719334063388,-1000.0,0.00044384,30]
[330362490,1719334063413,-323.49,0.00044384,120]
[330362491,1719334063437,-156.23194071,0.00044388,30]
[330362492,1719334063461,-150.0,0.00044431,30]
[330362493,1719334063486,-156.23194071,0.00044436,30]
[330362494,1719334063511,-156.23194071,0.00044483,30]
[330362495,1719334063536,-151.0,0.00044493,120]
[330362496,1719334063561,-5868.0,0.000445,30]
[330362497,1719334063585,-750.0,0.000445,80]
[330362498,1719334063610,-3820.01,0.00044503,30]
[330362499,1719334063636,-3820.01,0.00044503,30]
[330362500,1719334063660,-150.0,0.00044507,30]
[330362501,1719334063684,-150.0,0.00044507,30]
[330362502,1719334063708,-156.23194071,0.0004453,30]
[330362503,1719334063734,-1000.0,0.0004454,30]
[330362504,1719334063760,-1000.0,0.00044548,120]
[330362505,1719334063785,-156.23194071,0.00044578,30]
[330362506,1719334063812,-150.0,0.00044582,30]
[330362507,1719334063842,-156.23194071,0.00044625,30]
[330362508,1719334063871,-549.96354169,0.00044657,120]
[330362509,1719334063896,-3378.78,0.00044657,30]
[330362510,1719334063921,-3378.78,0.00044657,30]
[330362511,1719334063948,-3378.78,0.00044657,30]
[330362512,1719334063974,-3378.78,0.00044657,30]
[330362513,1719334063999,-3378.78,0.00044657,30]
[330362514,1719334064026,-3378.78,0.00044657,30]
[330362515,1719334064051,-3378.78,0.00044657,30]
[330362516,1719334064076,-3378.78,0.00044657,30]
[330362517,1719334064100,-3378.78,0.00044657,30]
[330362518,1719334064125,-3378.78,0.00044657,30]
[330362519,1719334064149,-3378.78,0.00044657,30]
[330362520,1719334064172,-3378.78,0.00044657,30]
[330362521,1719334064197,-3378.78,0.00044657,30]
[330362522,1719334064222,-3378.78,0.00044657,30]
[330362523,1719334064247,-3378.78,0.00044657,30]
[330362524,1719334064272,-3378.78,0.00044657,30]
[330362525,1719334064296,-3378.78,0.00044657,30]
[330362526,1719334064320,-3378.78,0.00044657,30]
[330362527,1719334064347,-3378.78,0.00044657,30]
[330362528,1719334064371,-3378.78,0.00044657,30]
[330362529,1719334064396,-3378.78,0.00044657,30]
[330362530,1719334064420,-3378.78,0.00044657,30]
[330362531,1719334064444,-3378.78,0.00044657,30]
[330362532,1719334064470,-3378.82308929,0.00044657,30]
[330362533,1719334064496,-8007.05,0.00044657,120]
[330362534,1719334064522,-5101.5,0.00044657,120]
[330362535,1719334064547,-150.0,0.00044658,30]
[330362536,1719334064572,-156.23194071,0.00044672,30]
[330362537,1719334064596,-1000.0,0.00044697,30]
[330362538,1719334064621,-152.0,0.00044712,31]
[330362539,1719334064646,-355.91276097,0.00044712,30]
[330362540,1719334064670,-156.23194071,0.0004472,30]
[330362541,1719334064693,-150.0,0.00044733,30]
[330362542,1719334064719,-156.23194071,0.00044767,30]
[330362543,1719334064745,-159.44211135,0.00044772,30]
[330362544,1719334064769,-150.0,0.00044809,30]
[330362545,1719334064795,-156.23194071,0.00044814,30]
[330362546,1719334064822,-1702.05137702,0.00044824,30]
[330362547,1719334064846,-1000.0,0.00044853,30]
[330362548,1719334064874,-156.23194071,0.00044861,30]
[330362549,1719334064898,-150.0,0.00044884,30]
[330362550,1719334064921,-804819.2917297,0.000449,35]
[330362551,1719334064950,-861.0,0.000449,30]
[330362552,1719334064974,-156.23194071,0.00044909,30]
[330362553,1719334065000,-8007.05,0.00044931,120]
[330362554,1719334065027,-5101.5,0.00044931,120]
[330362555,1719334065052,-500.0,0.00044942,30]
[330362556,1719334065075,-156.36496914,0.00044955,30]
[330362557,1719334065100,-156.23194071,0.00044956,30]
[330362558,1719334065124,-150.0,0.0004496,30]
[330362559,1719334065147,-500.0,0.00044964,30]
[330362560,1719334065172,-173.82217195,0.00044975,30]
[330362561,1719334065196,-172.18888889,0.00044986,120]
[330362562,1719334065223,-50000.0,0.00045,35]
[330362563,1719334065248,-384.32328206,0.00045,15]
[330362564,1719334065274,-150.0,0.00045,85]
[330362565,1719334065299,-500.0,0.00045,30]
[330362566,1719334065324,-200.02394486,0.00045,120]
[330362567,1719334065348,-754.999985,0.00045,120]
[330362568,1719334065372,-419.72318515,0.00045,45]
[330362569,1719334065396,-264.07620519,0.00045,30]
[330362570,1719334065420,-333.79549653,0.00045,30]
[330362571,1719334065444,-2951.01359567,0.00045,30]
[330362572,1719334065468,-2039.3408071,0.00045,30]
[330362573,1719334065492,-1433.35409386,0.00045,90]
[330362574,1719334065518,-200.0,0.00045,120]
[330362575,1719334065542,-500.0,0.00045,120]
[330362576,1719334065566,-500.0,0.00045,120]
[330362577,1719334065591,-500.0,0.00045,120]
[330362578,1719334065614,-500.0,0.00045,120]
[330362579,1719334065639,-500.0,0.00045,120]
[330362580,1719334065664,-500.0,0.00045,120]
[330362581,1719334065689,-500.0,0.00045,120]
[330362582,1719334065714,-500.0,0.00045,120]
[330362583,1719334065742,-500.0,0.00045,120]
[330362584,1719334065769,-261.29,0.00045,120]
[330362585,1719334065792,-2466.37849522,0.00045,30]
[330362586,1719334065818,-1164.24791736,0.00045,60]
[330362587,1719334065843,-500.0,0.00045,30]
[330362588,1719334065873,-500.0,0.00045,30]
[330362589,1719334065899,-202.0,0.00045,120]
[330362590,1719334065922,-22462.97826662,0.00045,30]
[330362591,1719334066211,-202.57391084,0.00045,120]
[330362592,1719334066235,-153.91521671,0.00045,60]
[330362593,1719334066260,-1000000.0,0.00045,50]
[330362594,1719334066287,-1733.3,0.00045,120]
[330362595,1719334066314,-414065.0,0.00045,120]
[330362596,1719334066340,-130221.32456206,0.00045,90]
[330362597,1719334077225,-154.11083982,0.00040066,30]
[330362598,1719334077260,-336.89476887,0.00040073,30]
[330362599,1719334077295,-4066.30044907,0.00040167,30]
[330362600,1719334077329,-336.89476887,0.00040184,30]
[330362601,1719334077361,-405.57049422,0.00040206,30]
[330362602,1719334077394,-336.89476887,0.00040312,30]
[330362603,1719334077428,-152.23516054,0.0004032,30]
[330362604,1719334077460,-152.23516054,0.00040337,30]
[330362605,1719334077493,-222.92143936,0.00040362,30]
[330362606,1719334077526,-336.89476887,0.00040465,30]
[330362607,1719334077557,-336.89476887,0.00040656,30]
[330362608,1719334077589,-222.92143936,0.00040704,30]
[330362609,1719334077620,-747.74115056,0.00040857,30]
[330362610,1719334077652,-222.92143936,0.00040913,30]
[330362611,1719334077683,-178.28346293,0.00040958,30]
[330362612,1719334077713,-150.97304623,0.00041026,30]
[330362613,1719334077745,-154.11083982,0.00041054,30]
[330362614,1719334077780,-222.92143936,0.00041099,30]
[330362615,1719334077812,-154.11083982,0.00041175,30]
[330362616,1719334077846,-571.91690735,0.00041191,30]
[330362617,1719334077883,-166.66666666,0.00041197,30]
[330362618,1719334077917,-747.74115056,0.00041296,30]
[330362619,1719334077950,-405.57049422,0.00041302,30]
[330362620,1719334077983,-199.11869225,0.00041311,30]
[330362621,1719334078018,-405.57049422,0.00041337,30]
[330362622,1719334078052,-571.91690735,0.00041514,30]
[330362623,1719334078085,-152.23516054,0.00041594,30]
[330362624,1719334078117,-199.11869225,0.00041622,30]
[330362625,1719334078149,-4066.30044907,0.00041715,30]
[330362626,1719334078182,-747.74115056,0.00041723,30]
[330362627,1719334078214,-747.74115056,0.00041732,30]
[330362628,1719334078247,-199.11869225,0.00041836,30]
[330362629,1719334078281,-4066.30044907,0.00041864,30]
[330362630,1719334078315,-571.91690735,0.00041944,30]
[330362631,1719334078346,-571.91690735,0.00041946,30]
[330362632,1719334078378,-152.23516054,0.00041947,30]
[330362633,1719334078410,-571.91690735,0.0004198,30]
[330362634,1719334078442,-405.57049422,0.00041984,30]
[330362635,1719334078474,-405.57049422,0.00042243,30]
[330362636,1719334078506,-199.11869225,0.00042247,30]
[330362637,1719334078542,-405.57049422,0.00042259,30]
[330362638,1719334078575,-150.97304623,0.00042516,30]
[330362639,1719334078607,-571.91690735,0.00042532,30]
[330362640,1719334078640,-747.74115056,0.00042566,30]
[330362641,1719334078673,-199.11869225,0.00042631,30]
[330362642,1719334078705,-571.91690735,0.00042642,30]
[330362643,1719334078736,-154.11083982,0.00042647,30]
[330362644,1719334078768,-571.91690735,0.00042654,30]
[330362645,1719334078800,-199.11869225,0.00042681,30]
[330362646,1719334078832,-150.97304623,0.00042764,30]
[330362647,1719334078866,-178.28346293,0.00042793,30]
[330362648,1719334078900,-152.23516054,0.00042855,30]
[330362649,1719334078934,-222.92143936,0.0004293,30]
[330362650,1719334078968,-405.57049422,0.00043194,30]
[330362651,1719334079000,-747.74115056,0.00043245,30]
[330362652,1719334079033,-150.97008216,0.00043254,30]
[330362653,1719334079064,-405.57049422,0.00043383,30]
[330362654,1719334079095,-152.23516054,0.00043403,30]
[330362655,1719334079348,-178.28346293,0.00043431,30]
[330362656,1719334079380,-178.28346293,0.00043433,30]
[330362657,1719334079411,-406.41428464,0.00043466,30]
[330362658,1719334079442,-222.92143936,0.00043478,30]
[330362659,1719334079474,-178.28346293,0.00043523,30]
[330362660,1719334079505,-150.97304626,0.00043553,30]
[330362661,1719334079538,-178.28346293,0.00043638,30]
[330362662,1719334079568,-571.91690735,0.00043644,30]
[330362663,1719334079599,-571.91690735,0.00043656,30]
[330362664,1719334079631,-199.11869225,0.00043659,30]
[330362665,1719334079662,-154.11083982,0.00043661,30]
[330362666,1719334079691,-747.74115056,0.00043698,30]
[330362667,1719334079722,-178.28346293,0.0004377,30]